[Event "Late-Titled-Tuesday-Blitz-September-26-2023"]
[Site "Chess.com"]
[Date "2023.09.26"]
[Round "9"]
[White "kleinebeer98"]
[Black "jcibarra"]
[Result "0-1"]
[WhiteElo "2822"]
[BlackElo "2955"]
[TimeControl "180+1"]
[EndTime "15:40:18 PDT"]
[Termination "jcibarra won by resignation"]

1. e4 {[%clk 0:03:00.9]} 1... c5 {[%clk 0:02:59]} 2. Nf3 {[%clk 0:03:01.2]} 2...
Nc6 {[%clk 0:02:59]} 3. d4 {[%clk 0:03:01]} 3... cxd4 {[%clk 0:02:57]} 4. Nxd4
{[%clk 0:03:01.9]} 4... Nf6 {[%clk 0:02:56.5]} 5. Nc3 {[%clk 0:03:02.1]} 5... e6
{[%clk 0:02:57.1]} 6. Ndb5 {[%clk 0:03:01.1]} 6... Bc5 {[%clk 0:02:56.7]} 7. Bf4
{[%clk 0:02:59.2]} 7... O-O {[%clk 0:02:55.6]} 8. Bc7 {[%clk 0:02:59.1]} 8...
Qe7 {[%clk 0:02:55.5]} 9. Bd6 {[%clk 0:02:59.8]} 9... Bxd6 {[%clk 0:02:55.5]}
10. Qxd6 {[%clk 0:03:00.7]} 10... Qd8 {[%clk 0:02:55.7]} 11. O-O-O {[%clk
0:03:00.9]} 11... a6 {[%clk 0:02:54.6]} 12. Nd4 {[%clk 0:03:01.5]} 12... Ne7
{[%clk 0:02:54.9]} 13. h4 {[%clk 0:03:01.6]} 13... b5 {[%clk 0:02:50.8]} 14. h5
{[%clk 0:03:01.2]} 14... Ne8 {[%clk 0:02:35.6]} 15. Qg3 {[%clk 0:03:00.8]} 15...
h6 {[%clk 0:02:34.2]} 16. e5 {[%clk 0:02:59]} 16... Bb7 {[%clk 0:02:29.1]} 17.
Bd3 {[%clk 0:02:58.5]} 17... Qb6 {[%clk 0:02:23.6]} 18. Rh4 {[%clk 0:02:58]}
18... Kh8 {[%clk 0:02:18.4]} 19. a3 {[%clk 0:02:26.1]} 19... Rc8 {[%clk
0:02:17.3]} 20. Rg4 {[%clk 0:02:21.2]} 20... Rg8 {[%clk 0:02:16.9]} 21. Qf4
{[%clk 0:02:13.8]} 21... f5 {[%clk 0:01:54.7]} 22. exf6 {[%clk 0:02:08.5]} 22...
Nxf6 {[%clk 0:01:53.8]} 23. Rg6 {[%clk 0:01:27.7]} 23... Nxg6 {[%clk 0:01:47.1]}
24. hxg6 {[%clk 0:01:28.6]} 24... Rgf8 {[%clk 0:01:40.9]} 25. Rh1 {[%clk
0:01:29]} 25... Ng8 {[%clk 0:01:39.8]} 26. Qe3 {[%clk 0:01:18.1]} 26... e5
{[%clk 0:01:33.5]} 27. Nf5 {[%clk 0:00:30.7]} 27... Qxe3+ {[%clk 0:01:31.8]} 28.
Nxe3 {[%clk 0:00:18.4]} 28... Rxf2 {[%clk 0:01:28.6]} 29. Ncd5 {[%clk
0:00:14.1]} 29... Bxd5 {[%clk 0:01:14.5]} 30. Nxd5 {[%clk 0:00:15]} 30... Nf6
{[%clk 0:01:08.3]} 31. Ne7 {[%clk 0:00:15.2]} 31... Re8 {[%clk 0:01:04.8]} 32.
Nf5 {[%clk 0:00:12.2]} 32... e4 {[%clk 0:01:03.6]} 33. Nd6 {[%clk 0:00:10.5]}
33... exd3 {[%clk 0:00:53.4]} 34. Nxe8 {[%clk 0:00:11.2]} 34... Rxc2+ {[%clk
0:00:53.5]} 35. Kb1 {[%clk 0:00:10.9]} 35... Nxe8 {[%clk 0:00:54]} 36. Rd1
{[%clk 0:00:09.2]} 36... Rxg2 {[%clk 0:00:52.2]} 37. Rxd3 {[%clk 0:00:08.8]}
37... Rxg6 {[%clk 0:00:51.8]} 38. Rxd7 {[%clk 0:00:09.7]} 38... Nf6 {[%clk
0:00:51.4]} 39. Rxg7 {[%clk 0:00:09]} 39... Kxg7 {[%clk 0:00:50.8]} 0-1

[Event "Late-Titled-Tuesday-Blitz-September-26-2023"]
[Site "Chess.com"]
[Date "2023.09.26"]
[Round "9"]
[White "Zavgorodniy_Sergiy"]
[Black "DeArron_Fox"]
[Result "1-0"]
[WhiteElo "2585"]
[BlackElo "2474"]
[TimeControl "180+1"]
[EndTime "15:40:19 PDT"]
[Termination "Zavgorodniy_Sergiy won by checkmate"]

1. d4 {[%clk 0:03:00.9]} 1... d5 {[%clk 0:02:58]} 2. c4 {[%clk 0:03:01]} 2... e6
{[%clk 0:02:57.6]} 3. Nf3 {[%clk 0:03:01.2]} 3... Nf6 {[%clk 0:02:57.9]} 4. e3
{[%clk 0:03:01.4]} 4... Be7 {[%clk 0:02:57.6]} 5. Nbd2 {[%clk 0:03:01.2]} 5...
O-O {[%clk 0:02:57.3]} 6. Bd3 {[%clk 0:03:01.2]} 6... b6 {[%clk 0:02:57.1]} 7.
O-O {[%clk 0:03:01.2]} 7... Bb7 {[%clk 0:02:57.6]} 8. Qe2 {[%clk 0:03:01.1]}
8... Nbd7 {[%clk 0:02:57.4]} 9. e4 {[%clk 0:03:01.4]} 9... dxe4 {[%clk
0:02:54.5]} 10. Nxe4 {[%clk 0:03:02.3]} 10... c5 {[%clk 0:02:53.8]} 11. Rd1
{[%clk 0:03:01]} 11... cxd4 {[%clk 0:02:38.9]} 12. Nxd4 {[%clk 0:03:01.9]} 12...
Nc5 {[%clk 0:02:32.3]} 13. Nxc5 {[%clk 0:02:59]} 13... Bxc5 {[%clk 0:02:31.3]}
14. Nf3 {[%clk 0:02:56.6]} 14... Qc7 {[%clk 0:02:14.4]} 15. Ne5 {[%clk
0:02:56.6]} 15... h6 {[%clk 0:02:09]} 16. Bf4 {[%clk 0:02:55.8]} 16... Qe7
{[%clk 0:02:01.3]} 17. a3 {[%clk 0:02:53.6]} 17... a5 {[%clk 0:02:01.7]} 18. Bc2
{[%clk 0:02:47.9]} 18... Rfd8 {[%clk 0:01:55.8]} 19. Kf1 {[%clk 0:02:46.9]}
19... Bd4 {[%clk 0:01:29]} 20. Rab1 {[%clk 0:02:41.6]} 20... a4 {[%clk
0:00:49.4]} 21. Nf3 {[%clk 0:02:36.9]} 21... Bxf3 {[%clk 0:00:46]} 22. Qxf3
{[%clk 0:02:35.5]} 22... e5 {[%clk 0:00:46.2]} 23. Be3 {[%clk 0:02:27.9]} 23...
Qc5 {[%clk 0:00:27.2]} 24. Bxd4 {[%clk 0:02:22.6]} 24... exd4 {[%clk 0:00:24.1]}
25. Bd3 {[%clk 0:02:20.6]} 25... Ra7 {[%clk 0:00:16.7]} 26. Re1 {[%clk
0:02:20.2]} 26... Re7 {[%clk 0:00:16.1]} 27. Rxe7 {[%clk 0:02:20.3]} 27... Qxe7
{[%clk 0:00:17]} 28. Re1 {[%clk 0:02:20.6]} 28... Qd6 {[%clk 0:00:15.4]} 29. g3
{[%clk 0:02:16.7]} 29... g6 {[%clk 0:00:15]} 30. Kg2 {[%clk 0:02:13.4]} 30...
Nd7 {[%clk 0:00:15.2]} 31. Qd1 {[%clk 0:01:53.8]} 31... Nc5 {[%clk 0:00:14.5]}
32. Qf3 {[%clk 0:01:47]} 32... Kg7 {[%clk 0:00:13.3]} 33. h4 {[%clk 0:01:46.5]}
33... h5 {[%clk 0:00:12.8]} 34. Kg1 {[%clk 0:01:45.7]} 34... Rd7 {[%clk
0:00:10.7]} 35. Re2 {[%clk 0:01:45.2]} 35... Re7 {[%clk 0:00:10.7]} 36. Rd2
{[%clk 0:01:41.3]} 36... Nb3 {[%clk 0:00:05.1]} 37. Rd1 {[%clk 0:01:41.4]} 37...
Nc5 {[%clk 0:00:05.1]} 38. Rd2 {[%clk 0:01:41.5]} 38... Re1+ {[%clk 0:00:04.5]}
39. Kg2 {[%clk 0:01:41.6]} 39... Nb3 {[%clk 0:00:05.4]} 40. Re2 {[%clk
0:01:39.4]} 40... Rxe2 {[%clk 0:00:05.7]} 41. Bxe2 {[%clk 0:01:35.8]} 41... Nc5
{[%clk 0:00:04.6]} 42. Bd3 {[%clk 0:01:33.6]} 42... Qe6 {[%clk 0:00:05.2]} 43.
Qd1 {[%clk 0:01:30.8]} 43... Qc6+ {[%clk 0:00:02.9]} 44. Kg1 {[%clk 0:01:30.8]}
44... Ne6 {[%clk 0:00:03]} 45. Qe2 {[%clk 0:01:28.9]} 45... Qc5 {[%clk
0:00:03.2]} 46. Be4 {[%clk 0:01:27.6]} 46... Kf6 {[%clk 0:00:03]} 47. Bd5 {[%clk
0:01:27.8]} 47... Nc7 {[%clk 0:00:02.4]} 48. Qf3+ {[%clk 0:01:28]} 48... Kg7
{[%clk 0:00:03]} 49. Qxf7+ {[%clk 0:01:28]} 49... Kh6 {[%clk 0:00:02.5]} 50. Qg8
{[%clk 0:01:23.6]} 50... Nxd5 {[%clk 0:00:02.1]} 51. Qh8# {[%clk 0:01:23.4]} 1-0

[Event "Late-Titled-Tuesday-Blitz-September-26-2023"]
[Site "Chess.com"]
[Date "2023.09.26"]
[Round "9"]
[White "Dewarfd"]
[Black "chosenpr"]
[Result "1-0"]
[WhiteElo "2224"]
[BlackElo "2270"]
[TimeControl "180+1"]
[EndTime "15:40:19 PDT"]
[Termination "Dewarfd won by resignation"]

1. d4 {[%clk 0:02:59.9]} 1... Nf6 {[%clk 0:02:58.7]} 2. e3 {[%clk 0:02:59.8]}
2... c5 {[%clk 0:02:56]} 3. dxc5 {[%clk 0:02:58.6]} 3... e6 {[%clk 0:02:52.2]}
4. Nf3 {[%clk 0:02:57.9]} 4... Bxc5 {[%clk 0:02:51.7]} 5. c4 {[%clk 0:02:57.4]}
5... O-O {[%clk 0:02:50.9]} 6. a3 {[%clk 0:02:57]} 6... Be7 {[%clk 0:02:47]} 7.
Be2 {[%clk 0:02:56]} 7... b6 {[%clk 0:02:47.1]} 8. O-O {[%clk 0:02:55.4]} 8...
Bb7 {[%clk 0:02:47.7]} 9. b4 {[%clk 0:02:53.9]} 9... d6 {[%clk 0:02:46]} 10. Bb2
{[%clk 0:02:53.4]} 10... Nbd7 {[%clk 0:02:45.8]} 11. Qb3 {[%clk 0:02:47.7]}
11... Re8 {[%clk 0:02:43.9]} 12. Rd1 {[%clk 0:02:47.2]} 12... Qc7 {[%clk
0:02:42.1]} 13. Nbd2 {[%clk 0:02:45.6]} 13... Rac8 {[%clk 0:02:40.7]} 14. Rac1
{[%clk 0:02:45.1]} 14... Qb8 {[%clk 0:02:35.1]} 15. Nd4 {[%clk 0:02:36.1]} 15...
a6 {[%clk 0:02:33.3]} 16. Bf3 {[%clk 0:02:34.4]} 16... Ne5 {[%clk 0:02:29.2]}
17. Bxb7 {[%clk 0:02:33.7]} 17... Qxb7 {[%clk 0:02:30.1]} 18. N2f3 {[%clk
0:02:27.9]} 18... Nxf3+ {[%clk 0:02:13.8]} 19. Nxf3 {[%clk 0:02:27.3]} 19...
Red8 {[%clk 0:02:13.4]} 20. Qd3 {[%clk 0:02:13.3]} 20... b5 {[%clk 0:02:11.5]}
21. cxb5 {[%clk 0:02:09.3]} 21... axb5 {[%clk 0:02:12.4]} 22. Ng5 {[%clk
0:01:59.6]} 22... h6 {[%clk 0:02:08.3]} 23. Rxc8 {[%clk 0:01:49]} 23... Rxc8
{[%clk 0:02:03.6]} 24. Bxf6 {[%clk 0:01:44.8]} 24... hxg5 {[%clk 0:01:51.2]} 25.
Bxe7 {[%clk 0:01:41.7]} 25... Qxe7 {[%clk 0:01:50.8]} 26. h3 {[%clk 0:01:41]}
26... Qf6 {[%clk 0:01:07.1]} 27. Qxd6 {[%clk 0:01:25.5]} 27... Rc3 {[%clk
0:00:56.4]} 28. Qd8+ {[%clk 0:01:20.7]} 28... Kh7 {[%clk 0:00:53.7]} 29. Qxf6
{[%clk 0:01:20.1]} 29... gxf6 {[%clk 0:00:52.8]} 30. Rd7 {[%clk 0:01:18.8]}
30... Kg6 {[%clk 0:00:51]} 31. Rb7 {[%clk 0:01:18.3]} 31... Rxa3 {[%clk
0:00:50]} 32. Rxb5 {[%clk 0:01:17.9]} 32... Ra2 {[%clk 0:00:47.2]} 33. Rb8
{[%clk 0:01:13.3]} 33... Rb2 {[%clk 0:00:46.4]} 34. b5 {[%clk 0:01:13.1]} 34...
Kf5 {[%clk 0:00:46]} 35. b6 {[%clk 0:01:12.8]} 35... Ke5 {[%clk 0:00:45.4]} 36.
b7 {[%clk 0:01:12.1]} 36... f5 {[%clk 0:00:41.1]} 37. g3 {[%clk 0:01:11.7]}
37... f6 {[%clk 0:00:40]} 38. h4 {[%clk 0:01:11.1]} 38... gxh4 {[%clk 0:00:34]}
39. gxh4 {[%clk 0:01:11.6]} 39... f4 {[%clk 0:00:34]} 40. exf4+ {[%clk
0:01:03.8]} 40... Kxf4 {[%clk 0:00:33.9]} 41. Kg2 {[%clk 0:01:03.3]} 41... Ke5
{[%clk 0:00:26.8]} 42. h5 {[%clk 0:01:03.1]} 42... Kd6 {[%clk 0:00:21.6]} 43.
Rd8+ {[%clk 0:00:57.4]} 43... Kc7 {[%clk 0:00:20.4]} 44. b8=Q+ {[%clk
0:00:55.3]} 44... Rxb8 {[%clk 0:00:21.3]} 45. Rxb8 {[%clk 0:00:55.4]} 45... Kxb8
{[%clk 0:00:21.6]} 46. h6 {[%clk 0:00:55.7]} 1-0

[Event "Late-Titled-Tuesday-Blitz-September-26-2023"]
[Site "Chess.com"]
[Date "2023.09.26"]
[Round "9"]
[White "brm72"]
[Black "melissa_guez"]
[Result "1-0"]
[WhiteElo "2516"]
[BlackElo "2211"]
[TimeControl "180+1"]
[EndTime "15:40:20 PDT"]
[Termination "brm72 won on time"]

1. e4 {[%clk 0:02:56.4]} 1... c5 {[%clk 0:02:59.7]} 2. Nf3 {[%clk 0:02:55.8]}
2... e6 {[%clk 0:03:00.1]} 3. d4 {[%clk 0:02:55.8]} 3... cxd4 {[%clk 0:03:01]}
4. Nxd4 {[%clk 0:02:56.7]} 4... Nc6 {[%clk 0:03:01.5]} 5. Nc3 {[%clk 0:02:56.8]}
5... Qc7 {[%clk 0:03:01.8]} 6. Be3 {[%clk 0:02:56.4]} 6... a6 {[%clk 0:03:02.2]}
7. Qd2 {[%clk 0:02:56.1]} 7... Nf6 {[%clk 0:03:02.2]} 8. f3 {[%clk 0:02:55.8]}
8... b5 {[%clk 0:02:58.6]} 9. O-O-O {[%clk 0:02:53.9]} 9... Bb7 {[%clk
0:02:54.3]} 10. Kb1 {[%clk 0:02:51.8]} 10... Be7 {[%clk 0:02:34.1]} 11. g4
{[%clk 0:02:49]} 11... O-O {[%clk 0:02:29.9]} 12. h4 {[%clk 0:02:47.8]} 12... b4
{[%clk 0:02:13.8]} 13. Nce2 {[%clk 0:02:38.5]} 13... Ne5 {[%clk 0:02:09.5]} 14.
Nc1 {[%clk 0:02:28.9]} 14... Nexg4 {[%clk 0:01:27]} 15. fxg4 {[%clk 0:02:21.4]}
15... Nxe4 {[%clk 0:01:26]} 16. Qe1 {[%clk 0:02:15.4]} 16... Nc3+ {[%clk
0:01:10]} 17. bxc3 {[%clk 0:02:13.9]} 17... Bxh1 {[%clk 0:01:07]} 18. Bd3 {[%clk
0:02:12.9]} 18... Bd5 {[%clk 0:01:00]} 19. cxb4 {[%clk 0:02:10.7]} 19... Rfb8
{[%clk 0:00:49.7]} 20. c3 {[%clk 0:02:02.7]} 20... a5 {[%clk 0:00:29.5]} 21. b5
{[%clk 0:02:01.6]} 21... a4 {[%clk 0:00:25.9]} 22. g5 {[%clk 0:01:37.2]} 22...
g6 {[%clk 0:00:22.9]} 23. h5 {[%clk 0:01:36.9]} 23... e5 {[%clk 0:00:22.9]} 24.
Nc2 {[%clk 0:01:36.6]} 24... e4 {[%clk 0:00:15.1]} 25. Bf1 {[%clk 0:01:35.7]}
25... Bc4 {[%clk 0:00:15.4]} 26. Nd4 {[%clk 0:01:34]} 26... a3 {[%clk
0:00:11.6]} 27. Ncb3 {[%clk 0:01:28.6]} 27... Bxf1 {[%clk 0:00:11.4]} 28. Qxf1
{[%clk 0:01:29.5]} 28... Qxc3 {[%clk 0:00:11.7]} 29. Qe2 {[%clk 0:01:29.7]}
29... d5 {[%clk 0:00:09.2]} 30. hxg6 {[%clk 0:01:29.3]} 30... fxg6 {[%clk
0:00:08.1]} 31. Nc6 {[%clk 0:01:28.8]} 31... Rb7 {[%clk 0:00:08.5]} 32. Bd4
{[%clk 0:01:28.3]} 32... Qh3 {[%clk 0:00:04.9]} 33. Ba1 {[%clk 0:01:23.7]} 33...
Bb4 {[%clk 0:00:04.2]} 34. Nxb4 {[%clk 0:01:22.3]} 34... Rab8 {[%clk 0:00:03.3]}
35. Nxd5 {[%clk 0:01:21.9]} 35... Rxb5 {[%clk 0:00:03.7]} 36. Nf6+ {[%clk
0:01:21.4]} 36... Kf8 {[%clk 0:00:03.4]} 37. Nd7+ {[%clk 0:01:12.9]} 37... Kg8
{[%clk 0:00:03.3]} 38. Nxb8 {[%clk 0:01:12.6]} 38... Rxb3+ {[%clk 0:00:03.6]}
39. axb3 {[%clk 0:01:12.7]} 39... Qxb3+ {[%clk 0:00:04.5]} 40. Kc1 {[%clk
0:01:13]} 40... a2 {[%clk 0:00:05]} 41. Qb2 {[%clk 0:01:12]} 41... Qc4+ {[%clk
0:00:05.1]} 42. Qc2 {[%clk 0:01:12.4]} 42... Qb4 {[%clk 0:00:04.1]} 43. Qxa2+
{[%clk 0:01:12]} 1-0

[Event "Late-Titled-Tuesday-Blitz-September-26-2023"]
[Site "Chess.com"]
[Date "2023.09.26"]
[Round "9"]
[White "Kostukov_Alex"]
[Black "Javylavilla"]
[Result "0-1"]
[WhiteElo "2391"]
[BlackElo "2347"]
[TimeControl "180+1"]
[EndTime "15:40:25 PDT"]
[Termination "Javylavilla won on time"]

1. g3 {[%clk 0:02:54.8]} 1... d5 {[%clk 0:02:53.9]} 2. Bg2 {[%clk 0:02:54.4]}
2... Nf6 {[%clk 0:02:53.8]} 3. d3 {[%clk 0:02:54.7]} 3... c5 {[%clk 0:02:54.1]}
4. e4 {[%clk 0:02:55]} 4... e6 {[%clk 0:02:52]} 5. e5 {[%clk 0:02:53.7]} 5...
Nfd7 {[%clk 0:02:51.3]} 6. Nf3 {[%clk 0:02:53.8]} 6... Nc6 {[%clk 0:02:51.6]} 7.
Qe2 {[%clk 0:02:53.8]} 7... b6 {[%clk 0:02:52]} 8. O-O {[%clk 0:02:53.2]} 8...
Bb7 {[%clk 0:02:52.2]} 9. Bf4 {[%clk 0:02:50.8]} 9... Qc7 {[%clk 0:02:52.2]} 10.
h4 {[%clk 0:02:50.7]} 10... O-O-O {[%clk 0:02:51.5]} 11. c4 {[%clk 0:02:50.9]}
11... d4 {[%clk 0:02:51.1]} 12. Na3 {[%clk 0:02:50.4]} 12... a6 {[%clk
0:02:50.4]} 13. Nc2 {[%clk 0:02:49.6]} 13... h6 {[%clk 0:02:45.9]} 14. h5 {[%clk
0:02:48.5]} 14... Be7 {[%clk 0:02:45.8]} 15. b4 {[%clk 0:02:40.2]} 15... g5
{[%clk 0:02:39.5]} 16. hxg6 {[%clk 0:02:38.9]} 16... fxg6 {[%clk 0:02:40.4]} 17.
g4 {[%clk 0:02:27.9]} 17... g5 {[%clk 0:02:39.3]} 18. Bg3 {[%clk 0:02:28]} 18...
h5 {[%clk 0:02:39.3]} 19. gxh5 {[%clk 0:02:25.7]} 19... Rxh5 {[%clk 0:02:39]}
20. b5 {[%clk 0:01:56.1]} 20... axb5 {[%clk 0:01:58]} 21. cxb5 {[%clk
0:01:54.9]} 21... Na5 {[%clk 0:01:53.2]} 22. Rfe1 {[%clk 0:01:02.8]} 22... g4
{[%clk 0:01:49.8]} 23. Nd2 {[%clk 0:00:56.8]} 23... Bxg2 {[%clk 0:01:48.9]} 24.
Kxg2 {[%clk 0:00:57.1]} 24... Qb7+ {[%clk 0:01:48.6]} 25. Ne4 {[%clk 0:00:53]}
25... Nxe5 {[%clk 0:01:45.4]} 26. Rh1 {[%clk 0:00:47.8]} 26... Rxh1 {[%clk
0:01:44.2]} 27. Rxh1 {[%clk 0:00:47]} 27... Nf3 {[%clk 0:01:42.3]} 28. Rh7
{[%clk 0:00:42.9]} 28... Ng5 {[%clk 0:01:33.7]} 29. Rg7 {[%clk 0:00:23.3]} 29...
Nxe4 {[%clk 0:01:32.6]} 30. Qxe4 {[%clk 0:00:23.3]} 30... Qxe4+ {[%clk
0:01:32.2]} 31. dxe4 {[%clk 0:00:23.6]} 31... Bd6 {[%clk 0:01:26.1]} 32. e5
{[%clk 0:00:20.5]} 32... Bf8 {[%clk 0:01:25.3]} 33. Rxg4 {[%clk 0:00:20.6]}
33... d3 {[%clk 0:01:25.6]} 34. Ne3 {[%clk 0:00:20.8]} 34... d2 {[%clk
0:01:25.6]} 35. Nd1 {[%clk 0:00:20.6]} 35... c4 {[%clk 0:01:23.8]} 36. Kf1
{[%clk 0:00:16.4]} 36... c3 {[%clk 0:01:17.2]} 37. Nxc3 {[%clk 0:00:12.2]} 37...
d1=Q+ {[%clk 0:01:18.1]} 38. Nxd1 {[%clk 0:00:11.7]} 38... Rxd1+ {[%clk
0:01:18.8]} 39. Ke2 {[%clk 0:00:09.8]} 39... Rd8 {[%clk 0:01:18.8]} 40. Rg8
{[%clk 0:00:08.3]} 40... Bc5 {[%clk 0:01:17.8]} 41. Rg6 {[%clk 0:00:06.5]} 41...
Kd7 {[%clk 0:01:16.6]} 42. Bh4 {[%clk 0:00:05.9]} 42... Rf8 {[%clk 0:01:13.1]}
43. Rg7+ {[%clk 0:00:05.8]} 43... Kc8 {[%clk 0:01:13.1]} 44. Ra7 {[%clk
0:00:05.1]} 44... Nc4 {[%clk 0:01:10.2]} 45. a4 {[%clk 0:00:02.1]} 45... Nxe5
{[%clk 0:01:08.9]} 0-1

[Event "Late-Titled-Tuesday-Blitz-September-26-2023"]
[Site "Chess.com"]
[Date "2023.09.26"]
[Round "9"]
[White "Yushko_Olga"]
[Black "gabduschew"]
[Result "0-1"]
[WhiteElo "2064"]
[BlackElo "2387"]
[TimeControl "180+1"]
[EndTime "15:40:25 PDT"]
[Termination "gabduschew won on time"]

1. d4 {[%clk 0:03:00]} 1... c6 {[%clk 0:02:58.5]} 2. c4 {[%clk 0:02:59.6]} 2...
Qa5+ {[%clk 0:02:56.9]} 3. Nc3 {[%clk 0:02:59.1]} 3... g5 {[%clk 0:02:56.5]} 4.
h3 {[%clk 0:02:56.4]} 4... Bg7 {[%clk 0:02:55.6]} 5. Nf3 {[%clk 0:02:55.8]} 5...
h6 {[%clk 0:02:52.6]} 6. e3 {[%clk 0:02:50.2]} 6... d6 {[%clk 0:02:51.9]} 7. Bd3
{[%clk 0:02:48.4]} 7... Nd7 {[%clk 0:02:48.9]} 8. Rb1 {[%clk 0:02:43.7]} 8...
Nf8 {[%clk 0:02:47.3]} 9. b4 {[%clk 0:02:41.6]} 9... Qc7 {[%clk 0:02:46.9]} 10.
b5 {[%clk 0:02:33.6]} 10... Nf6 {[%clk 0:02:32.8]} 11. a4 {[%clk 0:02:27.2]}
11... g4 {[%clk 0:02:21.6]} 12. hxg4 {[%clk 0:02:25]} 12... Bxg4 {[%clk
0:02:22.5]} 13. Be2 {[%clk 0:02:23.1]} 13... h5 {[%clk 0:02:19.6]} 14. Ba3
{[%clk 0:02:17.7]} 14... c5 {[%clk 0:02:08.6]} 15. Nd5 {[%clk 0:02:10.3]} 15...
Nxd5 {[%clk 0:02:06.3]} 16. cxd5 {[%clk 0:02:10.3]} 16... Bxf3 {[%clk
0:01:58.4]} 17. Bxf3 {[%clk 0:02:07.1]} 17... cxd4 {[%clk 0:01:58.1]} 18. exd4
{[%clk 0:02:05.3]} 18... Qc3+ {[%clk 0:01:56.9]} 19. Qd2 {[%clk 0:01:54]} 19...
Qxa3 {[%clk 0:01:53.7]} 20. Bxh5 {[%clk 0:01:50.8]} 20... Qxa4 {[%clk
0:01:44.8]} 21. Qf4 {[%clk 0:01:25.7]} 21... Ng6 {[%clk 0:01:30.6]} 22. Qg5
{[%clk 0:01:00.5]} 22... Qa5+ {[%clk 0:01:12.4]} 23. Ke2 {[%clk 0:00:52.5]}
23... Qa2+ {[%clk 0:01:09]} 24. Kf3 {[%clk 0:00:48]} 24... Bf6 {[%clk
0:00:51.8]} 25. Qe3 {[%clk 0:00:34.7]} 25... Qxd5+ {[%clk 0:00:50.1]} 26. Ke2
{[%clk 0:00:32.7]} 26... Rxh5 {[%clk 0:00:48.5]} 27. Rhc1 {[%clk 0:00:23.4]}
27... Bxd4 {[%clk 0:00:45]} 0-1

[Event "Late-Titled-Tuesday-Blitz-September-26-2023"]
[Site "Chess.com"]
[Date "2023.09.26"]
[Round "9"]
[White "DonkyDonkyDonkey"]
[Black "FMVolodymyrSakun"]
[Result "1-0"]
[WhiteElo "2754"]
[BlackElo "2645"]
[TimeControl "180+1"]
[EndTime "15:40:26 PDT"]
[Termination "DonkyDonkyDonkey won on time"]

1. d4 {[%clk 0:03:00.9]} 1... Nf6 {[%clk 0:02:58.9]} 2. Nc3 {[%clk 0:03:00.9]}
2... d5 {[%clk 0:02:58.5]} 3. Bf4 {[%clk 0:03:01.3]} 3... e6 {[%clk 0:02:57]} 4.
Nb5 {[%clk 0:03:01.3]} 4... Na6 {[%clk 0:02:56.3]} 5. e3 {[%clk 0:03:01.8]} 5...
c6 {[%clk 0:02:54.8]} 6. Nc3 {[%clk 0:03:01.8]} 6... Bb4 {[%clk 0:02:54.7]} 7.
Bd3 {[%clk 0:02:57.1]} 7... c5 {[%clk 0:02:54.9]} 8. Nf3 {[%clk 0:02:42.7]} 8...
c4 {[%clk 0:02:50.1]} 9. Be2 {[%clk 0:02:42.3]} 9... Ne4 {[%clk 0:02:48.3]} 10.
O-O {[%clk 0:02:37.8]} 10... Nxc3 {[%clk 0:02:44.4]} 11. bxc3 {[%clk 0:02:38.7]}
11... Bxc3 {[%clk 0:02:45]} 12. Rb1 {[%clk 0:02:39.2]} 12... O-O {[%clk
0:02:43.8]} 13. h4 {[%clk 0:02:27.9]} 13... f6 {[%clk 0:02:25.2]} 14. h5 {[%clk
0:02:27.2]} 14... Rf7 {[%clk 0:02:06.9]} 15. Kh1 {[%clk 0:01:36.8]} 15... Qa5
{[%clk 0:01:56.5]} 16. g4 {[%clk 0:01:30.1]} 16... e5 {[%clk 0:01:50.8]} 17.
dxe5 {[%clk 0:01:22.6]} 17... Bxg4 {[%clk 0:01:50.6]} 18. Rg1 {[%clk 0:01:08.2]}
18... Bxh5 {[%clk 0:01:46.5]} 19. e6 {[%clk 0:01:05.3]} 19... Re7 {[%clk
0:01:36.1]} 20. Nh4 {[%clk 0:01:05.6]} 20... Bxe2 {[%clk 0:01:25.5]} 21. Qxe2
{[%clk 0:01:06.5]} 21... d4 {[%clk 0:01:19.4]} 22. e4 {[%clk 0:01:06.8]} 22...
Rc8 {[%clk 0:00:38.5]} 23. Nf5 {[%clk 0:00:59.2]} 23... Qd8 {[%clk 0:00:14.5]}
24. Bd6 {[%clk 0:00:59]} 24... Rcc7 {[%clk 0:00:08.8]} 25. Bxe7 {[%clk
0:00:46.4]} 25... Rxe7 {[%clk 0:00:09.7]} 26. Nxe7+ {[%clk 0:00:46.8]} 26...
Qxe7 {[%clk 0:00:09.4]} 27. Qh5 {[%clk 0:00:47.5]} 27... Nc5 {[%clk 0:00:07.2]}
28. Rxg7+ {[%clk 0:00:34.7]} 28... Kxg7 {[%clk 0:00:06.9]} 29. Rg1+ {[%clk
0:00:34.7]} 29... Kh8 {[%clk 0:00:06.8]} 30. Qf7 {[%clk 0:00:34.4]} 30... Qxf7
{[%clk 0:00:02.1]} 31. exf7 {[%clk 0:00:35.3]} 1-0

[Event "Late-Titled-Tuesday-Blitz-September-26-2023"]
[Site "Chess.com"]
[Date "2023.09.26"]
[Round "9"]
[White "cassoulet"]
[Black "Pedrada88"]
[Result "1-0"]
[WhiteElo "2752"]
[BlackElo "2570"]
[TimeControl "180+1"]
[EndTime "15:40:26 PDT"]
[Termination "cassoulet won on time"]

1. d4 {[%clk 0:03:00.9]} 1... d5 {[%clk 0:02:53.9]} 2. Nf3 {[%clk 0:03:00.1]}
2... Nf6 {[%clk 0:02:38.5]} 3. Bf4 {[%clk 0:02:58.8]} 3... e6 {[%clk 0:02:38.2]}
4. Nbd2 {[%clk 0:02:58.8]} 4... Bd6 {[%clk 0:02:38.5]} 5. e3 {[%clk 0:02:58.8]}
5... Bxf4 {[%clk 0:02:38.4]} 6. exf4 {[%clk 0:02:59.7]} 6... Ne4 {[%clk
0:02:38.1]} 7. Bd3 {[%clk 0:02:57.1]} 7... f5 {[%clk 0:02:38]} 8. Ne5 {[%clk
0:02:55.5]} 8... Nc6 {[%clk 0:02:33.6]} 9. Qh5+ {[%clk 0:02:54.4]} 9... g6
{[%clk 0:02:32.6]} 10. Nxg6 {[%clk 0:02:51.1]} 10... Nf6 {[%clk 0:02:26.7]} 11.
Qh3 {[%clk 0:02:42.8]} 11... Rg8 {[%clk 0:02:19.5]} 12. Ne5 {[%clk 0:02:40.5]}
12... Nxd4 {[%clk 0:02:16.1]} 13. O-O-O {[%clk 0:02:39.6]} 13... c5 {[%clk
0:02:12]} 14. Rhe1 {[%clk 0:02:36.7]} 14... Qa5 {[%clk 0:02:07]} 15. c3 {[%clk
0:02:31.3]} 15... Nb5 {[%clk 0:01:10.4]} 16. Bxf5 {[%clk 0:02:00.9]} 16... Qxa2
{[%clk 0:01:06.3]} 17. Bxe6 {[%clk 0:01:51.8]} 17... Nxc3 {[%clk 0:00:48.5]} 18.
Bf7+ {[%clk 0:01:44.5]} 18... Kf8 {[%clk 0:00:45.8]} 19. Qxc3 {[%clk 0:01:34.2]}
19... Bf5 {[%clk 0:00:25.4]} 20. Qa3 {[%clk 0:01:24.4]} 20... Qxa3 {[%clk
0:00:20.3]} 21. bxa3 {[%clk 0:01:25.3]} 21... Rxg2 {[%clk 0:00:20.3]} 22. Ndf3
{[%clk 0:01:13.5]} 22... Rxf2 {[%clk 0:00:19.3]} 23. Bxd5 {[%clk 0:01:13.4]}
23... Rc2+ {[%clk 0:00:11.1]} 24. Kb1 {[%clk 0:01:13.5]} 24... Nxd5 {[%clk
0:00:11.7]} 25. Ka1 {[%clk 0:00:48.4]} 25... Nc3 {[%clk 0:00:10.8]} 26. Rd2
{[%clk 0:00:48.5]} 26... b5 {[%clk 0:00:06.5]} 27. Rxc2 {[%clk 0:00:47.4]} 27...
Bxc2 {[%clk 0:00:07.4]} 28. Rc1 {[%clk 0:00:47.8]} 28... b4 {[%clk 0:00:04.6]}
29. Rxc2 {[%clk 0:00:46.2]} 29... a5 {[%clk 0:00:03.9]} 30. Nd7+ {[%clk
0:00:46]} 30... Ke7 {[%clk 0:00:03.2]} 31. Nxc5 {[%clk 0:00:46.9]} 31... Rf8
{[%clk 0:00:02.9]} 32. Nd3 {[%clk 0:00:42.9]} 32... Rd8 {[%clk 0:00:02.8]} 33.
Nfe5 {[%clk 0:00:42.8]} 33... Kf6 {[%clk 0:00:02.7]} 34. axb4 {[%clk 0:00:42]}
1-0